bitfinex/quotes_SOLUSD_20251208
["timestamp","ask_amount","ask_price","bid_price","bid_amount"]
[1765158778144,38.59687005,133.52,133.49,1e-08]
[1765158778647,26.21330136,133.52,133.49,0.68000001]
[1765158779140,30.29687005,133.52,133.49,1e-08]
[1765158780424,30.29687005,133.52,133.49,0.68000001]
[1765158780620,26.21330136,133.52,133.49,0.68000001]
[1765158782462,26.87330136,133.52,133.49,1e-08]
[1765158782743,7.4906367,133.5,133.49,1e-08]
[1765158786614,31.10735538,133.52,133.49,1e-08]
[1765158786615,7.49026948,133.51,133.49,1e-08]
[1765158786815,11.57383817,133.51,133.49,1e-08]
[1765158787019,12.38356869,133.5,133.49,1e-08]
[1765158787325,12.38356869,133.5,133.48,1e-08]
[1765158787637,11.57476653,133.49,133.48,1e-08]
[1765158788120,0.66,133.48,133.44,0.2]
[1765158788441,0.66,133.48,133.38,0.2]
[1765158788442,3.42356869,133.45,133.38,0.88]
[1765158788645,9.11530179,133.43,133.38,0.2]
[1765158788818,18.07530179,133.42,133.38,0.2]
[1765158789238,9.77530179,133.42,133.38,0.2]
[1765158789436,15.79512816,133.42,133.39,0.68]
[1765158790161,24.91042995,133.42,133.39,0.68]
[1765158790340,25.57042995,133.42,133.38,0.2]
[1765158791068,25.57042995,133.42,133.38,0.88]
[1765158791552,7.49512816,133.42,133.38,0.2]
[1765158791754,15.79512816,133.42,133.39,0.68]
[1765158792835,24.91042995,133.42,133.39,0.68]
[1765158793255,16.61042995,133.42,133.39,0.68]
[1765158793459,15.81512816,133.42,133.39,0.68]
[1765158794668,15.81512816,133.42,133.38,0.2]
[1765158794669,7.49512816,133.42,133.4,0.68]
[1765158795547,7.49456643,133.43,133.41,0.88]
[1765158796852,7.49456643,133.43,133.41,0.2]
[1765158797054,7.49456643,133.43,133.41,0.88]
[1765158798868,26.23022509,133.44,133.41,0.88]
[1765158799883,131.03022509,133.44,133.41,0.88]
[1765158800175,131.69022509,133.44,133.41,0.88]
[1765158800358,131.03022509,133.44,133.42,0.68]
[1765158800545,112.29400479,133.44,133.42,0.68]
[1765158800746,7.49363785,133.45,133.42,0.68]
[1765158801056,7.49363785,133.45,133.42,9.79530179]
[1765158801459,7.49363785,133.45,133.43,9.80530179]
[1765158801767,8.32,133.47,133.43,9.80530179]
[1765158801958,15.81119784,133.49,133.44,9.80530179]
[1765158802160,15.81119784,133.49,133.45,9.11530179]
[1765158802363,7.4906367,133.5,133.46,9.11530179]
[1765158802584,7.4906367,133.5,133.47,0.69]
[1765158803493,26.21722846,133.5,133.47,0.69]
[1765158804782,9.0,133.51,133.49,9.11530179]
[1765158804783,7.49011737,133.51,133.49,9.11530179]
[1765158805155,7.49011737,133.51,133.5,0.69]
[1765158805365,7.48895379,133.53,133.5,0.69]
[1765158805572,7.48895379,133.53,133.5,9.80530179]
[1765158805773,7.48895379,133.53,133.5,0.69]
[1765158805976,7.48895379,133.53,133.51,0.69]
[1765158806352,7.48895379,133.53,133.51,9.80530179]
[1765158806562,7.48783227,133.55,133.52,9.11530179]
[1765158806757,7.48783227,133.55,133.52,9.80530179]
[1765158807071,7.48783227,133.55,133.52,0.69]
[1765158807072,26.20741295,133.55,133.52,0.69]
[1765158807685,35.32271474,133.55,133.5,0.69]
[1765158807883,18.09530179,133.54,133.5,0.69]
[1765158808070,8.3,133.54,133.5,0.69]
[1765158808276,8.3,133.54,133.5,9.80530179]
[1765158808473,26.20741295,133.55,133.5,9.80530179]
[1765158808675,26.88741295,133.55,133.51,0.69]
[1765158808870,26.20741295,133.55,133.51,0.69]
[1765158809189,26.88741295,133.55,133.51,0.69]
[1765158809773,0.68,133.54,133.5,9.11530179]
[1765158809977,26.88741295,133.55,133.51,0.69]
[1765158811190,26.20741295,133.55,133.51,9.80530179]
[1765158811388,26.88741295,133.55,133.51,9.80530179]
[1765158811999,131.68741295,133.55,133.51,0.69]
[1765158812196,0.68,133.54,133.51,0.69]
[1765158812698,139.98741295,133.55,133.51,0.69]
[1765158813190,0.68,133.54,133.51,0.69]
[1765158813393,139.98741295,133.55,133.51,0.69]
[1765158813893,131.68741295,133.55,133.51,0.69]
[1765158814101,139.30741295,133.55,133.51,0.69]
[1765158814399,139.30741295,133.55,133.51,6.56595631]
[1765158814993,131.00741295,133.55,133.52,0.69]
[1765158815184,139.30741295,133.55,133.52,0.69]
[1765158815376,139.98741295,133.55,133.52,0.69]
[1765158815784,131.00741295,133.55,133.52,6.56595631]
[1765158817688,131.00741295,133.55,133.53,0.69]
[1765158818076,7.48783227,133.55,133.54,5.87595631]
[1765158818399,7.48737159,133.56,133.54,6.56595631]
[1765158819296,7.48737159,133.56,133.53,5.87595631]
[1765158819483,26.20555068,133.56,133.53,5.87595631]
[1765158819882,26.20555068,133.56,133.54,0.69]
[1765158820913,18.71817909,133.56,133.54,6.56595631]
[1765158821077,7.48671108,133.57,133.54,6.56595631]
[1765158821274,7.48671108,133.57,133.55,0.69]
[1765158822577,7.48559023,133.59,133.56,5.87595631]
[1765158822800,7.48559023,133.59,133.57,5.87595631]
[1765158823280,7.48559023,133.59,133.58,0.69]
[1765158823475,104.8,133.63,133.58,0.69]
[1765158823710,26.19442946,133.62,133.6,5.87595631]
[1765158824006,26.19442946,133.62,133.6,0.69]
[1765158824306,26.19442946,133.62,133.6,6.56595631]
[1765158824483,7.48390959,133.62,133.6,6.56595631]
[1765158824800,7.48390959,133.62,133.61,0.69]
[1765158825022,7.48334954,133.63,133.61,0.69]
[1765158825188,7.48334954,133.63,133.61,6.56595631]
[1765158825386,7.48334954,133.63,133.61,0.69]
[1765158826708,7.48334954,133.63,133.61,6.56595631]
[1765158827088,7.48334954,133.63,133.62,0.69]
[1765158827714,7.48334954,133.63,133.61,5.87595631]
[1765158827890,7.48334954,133.63,133.61,6.56595631]
[1765158828905,0.68,133.62,133.59,0.69]
[1765158829285,26.1917234,133.63,133.59,0.69]
[1765158829484,26.8717234,133.63,133.59,0.69]
[1765158829785,26.8717234,133.63,133.59,2.88009868]
[1765158830210,26.1917234,133.63,133.6,0.69]
[1765158830435,26.1917234,133.63,133.61,2.19009868]
[1765158830718,26.8717234,133.63,133.59,19.18896268]
[1765158831093,26.8717234,133.63,133.59,16.308864]
[1765158831292,26.1917234,133.63,133.6,0.67]
[1765158832085,26.8617234,133.63,133.6,0.67]
[1765158832514,26.1917234,133.63,133.6,0.67]
[1765158832728,26.1917234,133.63,133.6,2.86009868]
[1765158833091,26.1917234,133.63,133.6,2.19009868]
[1765158833309,26.1917234,133.63,133.6,2.86009868]
[1765158833615,26.1917234,133.63,133.6,0.67]
[1765158834232,2.19009868,133.61,133.55,9.47994492]
[1765158834431,2.19009868,133.61,133.56,0.67]
[1765158834612,2.86009868,133.61,133.56,0.67]
[1765158834807,26.86760479,133.6,133.56,0.67]
[1765158835220,26.86760479,133.6,133.56,16.978864]
[1765158835221,26.19760479,133.6,133.56,16.978864]
[1765158835419,26.19760479,133.6,133.56,19.16896268]
[1765158835623,26.19760479,133.6,133.57,0.67]
[1765158836527,26.19760479,133.6,133.57,2.86009868]
[1765158837237,26.19760479,133.6,133.57,0.67]
[1765158837426,26.19760479,133.6,133.58,0.69]
[1765158837812,26.19760479,133.6,133.57,0.69]
[1765158838537,26.19760479,133.6,133.56,16.308864]
[1765158838742,26.87760479,133.6,133.57,0.69]
[1765158839048,26.19760479,133.6,133.57,0.69]
[1765158839710,26.19760479,133.6,133.57,2.88009868]
[1765158840027,18.71257485,133.6,133.58,0.69]
[1765158840339,0.2,133.64,133.6,16.308864]
[1765158840514,7.68285014,133.64,133.62,18.49896268]
[1765158840715,8.36285014,133.64,133.59,38.19497614]
[1765158841037,2.19009868,133.62,133.58,16.308864]
[1765158841213,8.98,133.63,133.59,16.308864]
[1765158841413,26.38982409,133.64,133.59,18.49896268]
[1765158841613,26.38982409,133.64,133.6,2.88009868]
[1765158841828,0.2,133.64,133.62,11.0000436]
[1765158842237,0.2,133.64,133.63,2.88009868]
[1765158842922,0.2,133.64,133.63,11.6900436]
[1765158844742,0.2,133.64,133.63,19.17339314]
[1765158847120,0.2,133.64,133.63,11.6900436]
[1765158847315,0.2,133.64,133.63,8.80994492]
[1765158847739,7.68288638,133.64,133.62,2.88009868]
[1765158847935,7.68288638,133.64,133.62,0.69]
[1765158849264,7.68288638,133.64,133.62,2.88009868]
[1765158849937,7.68288638,133.64,133.63,0.69]
[1765158850460,0.2,133.64,133.63,11.6900436]
[1765158851239,7.68278958,133.64,133.63,2.88009868]
[1765158851445,0.2,133.64,133.63,0.69]
[1765158852330,7.68293069,133.64,133.62,2.19009868]
[1765158852534,7.68293069,133.64,133.62,2.88009868]
[1765158852945,8.36293069,133.64,133.61,26.79896268]
[1765158853156,7.68293069,133.64,133.62,0.69]
[1765158853664,7.68293069,133.64,133.62,2.88009868]
[1765158856134,7.68293069,133.64,133.63,11.6900436]
[1765158856135,0.2,133.64,133.63,11.6900436]
[1765158857174,0.2,133.64,133.63,19.17339314]
[1765158857472,0.2,133.64,133.63,27.47339314]
[1765158857768,0.2,133.64,133.63,10.49009868]
[1765158858075,0.2,133.64,133.63,27.47339314]
[1765158860043,0.2,133.64,133.63,29.66349182]
[1765158860244,0.2,133.64,133.63,39.45440525]
[1765158861745,0.2,133.64,133.63,37.26430657]
[1765158862053,0.2,133.64,133.63,27.47339314]
[1765158863663,0.2,133.64,133.63,41.59215846]
[1765158864568,0.2,133.64,133.63,43.78225714]
[1765158864886,0.2,133.64,133.63,41.59215846]
[1765158865074,0.2,133.64,133.63,43.78225714]
[1765158867487,0.2,133.64,133.63,41.59215846]
[1765158867689,0.2,133.64,133.63,40.90215846]
[1765158868270,0.2,133.64,133.63,41.57215846]
[1765158868580,0.85,133.64,133.63,33.41880892]
[1765158868879,0.85,133.64,133.63,25.11880892]
[1765158869269,0.2,133.64,133.63,25.11880892]
[1765158879091,0.2,133.64,133.63,44.99327298]
[1765158882808,0.2,133.64,133.63,36.83992344]
[1765158883032,0.2,133.64,133.63,33.41880892]
[1765158883188,0.2,133.64,133.63,8.3]
[1765158884688,0.2,133.64,133.63,41.89643693]
[1765158884897,0.2,133.66,133.65,19.72997852]
[1765158885102,0.2,133.66,133.65,37.82089195]
[1765158885293,0.2,133.66,133.65,38.49089195]
[1765158885881,0.2,133.66,133.65,47.30083687]
[1765158886291,0.2,133.66,133.65,30.99197287]
[1765158886827,0.2,133.66,133.65,38.47420257]
[1765158888121,0.2,133.66,133.65,36.83992344]
[1765158888430,0.85,133.66,133.65,24.608864]
[1765158889711,0.2,133.66,133.65,24.608864]
[1765158890032,8.3316699,133.66,133.65,24.608864]
[1765158890332,8.3316699,133.66,133.62,3.42111452]
[1765158890556,0.65,133.65,133.63,17.08994492]
[1765158891532,0.65,133.65,133.63,20.51105944]
[1765158894653,8.1322514,133.65,133.63,20.51105944]
[1765158895028,0.69,133.64,133.63,16.308864]
[1765158895229,0.69,133.64,133.6,17.08994492]
[1765158895533,0.69,133.64,133.6,20.51105944]
[1765158895837,0.69,133.64,133.63,16.308864]
[1765158896043,8.17278958,133.64,133.63,16.308864]
[1765158897132,7.48241472,133.65,133.63,19.72997852]
[1765158897345,8.14241472,133.65,133.63,16.308864]
[1765158899853,7.48241472,133.65,133.63,20.43997852]
[1765158900234,0.2,133.66,133.64,12.41111452]
[1765158900443,0.2,133.66,133.65,12.23105944]
[1765158900644,0.2,133.66,133.64,12.41111452]
[1765158901028,0.2,133.66,133.65,12.94105944]
[1765158901240,0.2,133.66,133.65,20.42328914]
[1765158901460,0.2,133.66,133.64,11.70111452]
[1765158901847,0.2,133.66,133.64,12.41111452]
[1765158902453,0.2,133.66,133.65,3.42111452]
[1765158902956,0.2,133.66,133.65,12.94105944]
[1765158903447,0.2,133.66,133.65,12.23105944]
[1765158903657,0.2,133.66,133.65,12.94105944]
[1765158903857,0.2,133.66,133.65,12.23105944]
[1765158904051,8.34167652,133.66,133.64,11.70111452]
[1765158904670,0.66,133.65,133.64,17.08994492]
[1765158905058,8.1422297,133.65,133.6,13.21202795]
[1765158905270,8.1422297,133.65,133.6,3.42111452]
[1765158905447,8.1422297,133.65,133.62,16.308864]
[1765158905448,0.66,133.64,133.62,16.308864]
[1765158905647,0.66,133.64,133.6,8.80994492]
[1765158905969,0.66,133.64,133.6,12.23105944]
[1765158906172,0.66,133.64,133.61,16.308864]
[1765158906547,0.66,133.64,133.6,12.23105944]
[1765158907053,7.48334954,133.63,133.61,16.308864]
[1765158907367,7.48334954,133.63,133.62,16.308864]
[1765158907574,8.14334954,133.63,133.62,16.308864]
[1765158908072,8.14334954,133.63,133.6,12.23105944]
[1765158908265,0.66,133.62,133.59,11.70111452]
[1765158908461,0.66,133.62,133.61,16.308864]
[1765158909047,0.66,133.62,133.59,24.588864]
[1765158909252,7.48446972,133.61,133.59,24.588864]
[1765158909479,7.48411086,133.62,133.6,4.13111452]
[1765158909815,8.14411086,133.62,133.59,28.71997852]
[1765158910017,7.48411086,133.62,133.59,28.71997852]
[1765158910324,8.14411086,133.62,133.59,28.71997852]
[1765158912075,8.14411086,133.62,133.59,28.00997852]
[1765158912892,8.14411086,133.62,133.59,28.71997852]
[1765158913795,8.14411086,133.62,133.6,8.80994492]
[1765158914609,8.14238748,133.65,133.62,8.80994492]
[1765158914782,8.14238748,133.65,133.62,12.23105944]
[1765158915112,8.14238748,133.65,133.62,12.94105944]
[1765158915319,8.14238748,133.65,133.62,12.23105944]
[1765158915488,8.14318593,133.64,133.62,12.23105944]
[1765158915688,7.48318593,133.64,133.62,12.23105944]
[1765158916012,7.48318593,133.64,133.63,3.42111452]
[1765158916895,7.48235549,133.65,133.63,3.42111452]
[1765158918017,8.34173783,133.66,133.64,8.80994492]
[1765158918224,7.68173783,133.66,133.64,12.94105944]
[1765158918592,7.68173783,133.66,133.64,12.23105944]
[1765158919455,0.66,133.65,133.63,8.28]
[1765158919792,0.66,133.65,133.63,8.80994492]
[1765158920018,4.08111452,133.65,133.62,16.308864]
[1765158920235,0.66,133.65,133.59,11.70111452]
[1765158920510,0.66,133.64,133.6,12.23105944]
[1765158920931,0.66,133.64,133.6,12.93105944]
[1765158921146,0.66,133.64,133.6,12.23105944]
[1765158921446,7.48334954,133.63,133.6,12.23105944]
[1765158921949,8.15334954,133.63,133.6,12.23105944]
[1765158922443,8.15334954,133.63,133.6,12.93105944]
[1765158922746,8.15334954,133.63,133.61,3.42111452]
[1765158923040,7.48334954,133.63,133.61,3.42111452]
[1765158923924,8.15334954,133.63,133.61,3.42111452]
[1765158925712,7.48334954,133.63,133.61,3.42111452]
[1765158926720,8.15334954,133.63,133.61,3.42111452]
[1765158927119,8.48,133.66,133.63,8.80994492]
[1765158927120,0.2,133.66,133.63,8.80994492]
[1765158927322,0.2,133.66,133.65,12.23105944]
[1765158927711,0.2,133.66,133.65,12.93105944]
[1765158927917,0.2,133.66,133.65,36.72215314]
[1765158929336,0.2,133.66,133.65,29.23992344]
[1765158929543,0.2,133.66,133.65,28.53992344]
[1765158930632,0.2,133.66,133.65,29.23992344]
[1765158931427,0.2,133.66,133.65,36.72215314]
[1765158931851,0.2,133.66,133.65,44.40252643]
[1765158934649,0.2,133.66,133.65,43.16921902]
[1765158935275,0.87,133.69,133.68,25.11880892]
[1765158935478,8.34999102,133.69,133.66,2.18780711]
[1765158935751,0.67,133.68,133.67,25.11880892]
[1765158936251,7.67999102,133.69,133.67,28.00661603]
[1765158936450,7.67999102,133.69,133.68,2.18780711]
[1765158936451,0.2,133.69,133.68,2.18780711]
[1765158936658,0.2,133.69,133.68,10.99775203]
[1765158939855,0.87,133.69,133.68,10.99775203]
[1765158940845,0.87,133.69,133.68,8.80994492]
[1765158941061,0.2,133.69,133.68,10.99775203]
[1765158942152,7.67999102,133.69,133.68,10.99775203]
[1765158942663,8.34999102,133.69,133.67,26.77667111]
[1765158942853,0.67,133.68,133.66,2.18780711]
[1765158943054,0.67,133.68,133.65,10.46780711]
[1765158943752,7.48111019,133.67,133.65,10.46780711]
[1765158943957,8.15111019,133.67,133.65,10.46780711]
[1765158944845,0.67,133.66,133.65,10.46780711]
[1765158945367,0.67,133.66,133.65,8.28]
[1765158945662,0.67,133.66,133.64,18.49667111]
[1765158945871,0.67,133.66,133.64,8.80994492]
[1765158946982,8.15190255,133.66,133.64,10.99775203]
[1765158947168,8.15190255,133.66,133.64,2.18780711]
[1765158947471,8.15190255,133.66,133.64,10.99775203]
[1765158951149,7.48190255,133.66,133.64,10.99775203]
[1765158951666,8.18190255,133.66,133.64,10.99775203]
[1765158953765,0.7,133.65,133.64,8.80994492]
[1765158953969,0.7,133.65,133.62,16.308864]
[1765158954279,0.2,133.65,133.62,16.308864]
[1765158954573,26.18607732,133.66,133.62,16.308864]
[1765158955658,26.18607732,133.66,133.62,17.028864]
[1765158955867,26.18607732,133.66,133.62,19.21667111]
[1765158956067,26.84607732,133.66,133.62,19.21667111]
[1765158958186,26.84607732,133.66,133.63,2.18780711]
[1765158959260,26.84607732,133.66,133.63,2.88780711]
[1765158959793,26.84607732,133.66,133.63,2.18780711]
[1765158960963,26.18607732,133.66,133.63,2.18780711]
[1765158961167,26.18607732,133.66,133.62,18.49667111]
[1765158961495,26.18607732,133.66,133.61,8.28]
[1765158961496,0.66,133.65,133.61,8.28]
[1765158961653,0.66,133.65,133.61,18.49667111]
[1765158962084,0.66,133.65,133.62,2.18780711]
[1765158962587,26.18607732,133.66,133.63,2.18780711]
[1765158962787,26.84607732,133.66,133.63,2.18780711]
[1765158963361,26.84607732,133.66,133.62,11.16780711]
[1765158964687,7.48278958,133.64,133.62,8.28]
[1765158965261,7.48278958,133.64,133.61,16.308864]
[1765158965463,8.14278958,133.64,133.61,16.308864]
[1765158966302,8.14278958,133.64,133.61,17.008864]
[1765158966501,7.48278958,133.64,133.61,19.19667111]
[1765158966868,7.48278958,133.64,133.62,0.7]
[1765158968067,18.70660965,133.65,133.62,0.7]
[1765158968796,7.4816699,133.66,133.63,18.49667111]
[1765158969164,7.4816699,133.66,133.64,0.7]
[1765158969394,7.4816699,133.66,133.63,19.19667111]
[1765158969992,0.66,133.65,133.63,16.308864]
[1765158970209,8.1416699,133.66,133.63,17.008864]
[1765158970498,7.4816699,133.66,133.63,17.008864]
[1765158970997,7.4816699,133.66,133.64,0.7]
[1765158971296,26.18584467,133.66,133.63,16.308864]
[1765158971478,0.66,133.65,133.63,16.308864]
[1765158972004,7.48278958,133.64,133.63,16.308864]
[1765158972995,10.33059669,133.64,133.59,0.7]
[1765158973166,35.12976353,133.64,133.6,0.7]
[1765158973371,35.12976353,133.64,133.6,2.88780711]
[1765158974394,35.12976353,133.64,133.61,0.7]
[1765158974575,34.46976353,133.64,133.61,0.7]
[1765158974775,35.12976353,133.64,133.61,0.7]
[1765158976181,35.12976353,133.64,133.6,2.18780711]
[1765158976382,35.12976353,133.64,133.6,0.7]
[1765158976590,35.12976353,133.64,133.6,2.88780711]
[1765158978077,35.12976353,133.64,133.6,0.7]
[1765158978404,35.12976353,133.64,133.53,66.10745317]
[1765158978405,2.18780711,133.62,133.56,0.7]
[1765158978586,8.28,133.61,133.57,0.7]
[1765158978913,8.94,133.61,133.57,0.7]
[1765158979108,8.94,133.63,133.58,2.18780711]
[1765158979273,8.28,133.63,133.59,2.18780711]
[1765158979677,8.28,133.63,133.6,0.7]
[1765158979887,7.48390959,133.62,133.6,0.7]
[1765158980378,19.36697395,133.64,133.61,2.18780711]
[1765158980379,7.48349424,133.63,133.61,2.18780711]
[1765158980799,7.48349424,133.63,133.61,2.90780711]
[1765158981002,7.48349424,133.63,133.61,0.72]
[1765158981297,7.48349424,133.63,133.62,0.72]
[1765158982018,7.48349424,133.63,133.61,0.72]
[1765158982403,26.18976353,133.64,133.61,0.72]
[1765158982602,26.18976353,133.64,133.61,2.90780711]
[1765158983395,26.18976353,133.64,133.62,0.72]
[1765158983596,7.48278958,133.64,133.62,2.90780711]
[1765158984595,7.4822297,133.65,133.62,0.72]
[1765158985002,26.84780396,133.65,133.6,36.30661603]
[1765158985204,0.66,133.64,133.6,27.49667111]
[1765158985405,0.66,133.64,133.61,16.308864]
[1765158986021,0.66,133.64,133.61,17.028864]
[1765158986426,26.84780396,133.65,133.61,17.028864]
[1765158986609,26.84780396,133.65,133.62,0.72]
[1765158987002,131.64780396,133.65,133.62,0.72]
[1765158987212,0.66,133.64,133.61,16.308864]
[1765158987524,130.98780396,133.65,133.62,2.90780711]
[1765158987726,26.18780396,133.65,133.62,2.90780711]
[1765158987928,7.4822297,133.65,133.63,2.90780711]
[1765158988520,7.4822297,133.65,133.64,0.72]
[1765158988829,7.4816699,133.66,133.64,0.72]
[1765158989542,26.18584467,133.66,133.63,0.72]
[1765158989737,0.66,133.65,133.61,26.77667111]
[1765158989899,8.94,133.65,133.62,16.308864]
[1765158990633,8.94,133.65,133.62,17.028864]
[1765158990833,8.94,133.65,133.63,0.72]
[1765158990834,7.48278958,133.64,133.63,0.72]
[1765158992427,7.48278958,133.64,133.62,18.49667111]
[1765158992618,26.18780396,133.65,133.62,17.028864]
[1765158993124,26.18780396,133.65,133.62,19.21667111]
[1765158993918,26.84780396,133.65,133.62,16.308864]
[1765158994110,26.18780396,133.65,133.6,18.49667111]
[1765158994315,26.84780396,133.65,133.61,0.72]
[1765158994918,8.94,133.64,133.6,16.308864]
[1765158995232,8.94,133.64,133.6,20.45104758]
[1765158995426,8.94,133.64,133.6,19.73104758]
[1765158995611,8.94,133.64,133.61,0.72]
[1765158996233,7.48334954,133.63,133.61,0.72]
[1765158997840,7.48334954,133.63,133.6,20.45104758]
[1765158998047,7.48334954,133.63,133.6,16.308864]
[1765158998219,26.8517234,133.63,133.59,4.14218358]
[1765158998417,26.8517234,133.63,133.6,0.72]
[1765158999433,26.8517234,133.63,133.59,3.42218358]
[1765158999624,26.8517234,133.63,133.59,4.14218358]
[1765159000139,26.8517234,133.63,133.59,3.42218358]
[1765159000436,26.8517234,133.63,133.59,4.14218358]
[1765159000838,26.1917234,133.63,133.6,4.14218358]
[1765159001744,26.8517234,133.63,133.6,4.14218358]
[1765159001933,26.8517234,133.63,133.6,0.72]
[1765159002133,26.1917234,133.63,133.61,0.72]
[1765159002315,34.4717234,133.63,133.61,0.72]
[1765159002514,7.48334954,133.63,133.61,0.72]
[1765159002715,7.48334954,133.63,133.61,17.028864]
[1765159003314,8.14334954,133.63,133.59,29.2609925]
[1765159003514,7.48334954,133.63,133.59,29.2609925]
[1765159003716,7.48334954,133.63,133.6,0.72]
[1765159004138,112.28293134,133.64,133.62,3.42218358]
[1765159004638,112.28293134,133.64,133.63,0.72]
[1765159004822,7.4822297,133.65,133.63,0.72]
[1765159005922,7.4822297,133.65,133.61,3.42218358]
[1765159005923,26.18780396,133.65,133.61,0.72]
[1765159006120,26.84780396,133.65,133.61,0.72]
[1765159006330,8.94,133.64,133.59,51.73206099]
[1765159006531,12.36218358,133.64,133.59,25.83880892]
[1765159006746,0.66,133.63,133.59,25.83880892]
[1765159007442,0.66,133.63,133.59,25.11880892]
[1765159007631,0.66,133.63,133.6,0.72]
[1765159007832,0.66,133.63,133.59,25.83880892]
[1765159008546,7.48390959,133.62,133.59,16.308864]
[1765159008839,8.14390959,133.62,133.57,12.9521285]
[1765159009041,8.14390959,133.62,133.58,0.72]
[1765159009248,16.42390959,133.62,133.58,0.72]
[1765159009727,35.13368357,133.62,133.58,0.72]
[1765159010122,34.47368357,133.62,133.58,0.72]
[1765159010530,35.13368357,133.62,133.58,0.72]
[1765159010827,34.47368357,133.62,133.58,0.72]
[1765159011426,35.13368357,133.62,133.58,0.72]
[1765159012550,0.66,133.61,133.56,8.28]
[1765159012731,3.42218358,133.6,133.55,0.72]
[1765159013050,11.70218358,133.59,133.55,0.72]
[1765159013425,8.94,133.59,133.55,0.72]
[1765159014337,8.28,133.59,133.55,0.72]
[1765159014526,3.42218358,133.57,133.53,0.72]
[1765159014732,3.42218358,133.56,133.51,0.82]
[1765159014930,3.42218358,133.55,133.51,0.1]
[1765159015223,11.70218358,133.54,133.51,0.1]
[1765159015421,12.36218358,133.54,133.51,0.1]
[1765159015630,0.66,133.53,133.51,0.1]
[1765159016351,4.08218358,133.53,133.51,0.1]
[1765159016529,0.66,133.53,133.51,0.1]
[1765159016730,0.66,133.52,133.51,0.1]
[1765159017449,10.91113737,133.53,133.51,0.1]
[1765159017450,11.56113737,133.53,133.51,0.1]
[1765159017955,4.07218358,133.52,133.51,0.1]
[1765159018335,4.07218358,133.52,133.51,1e-08]
[1765159019944,11.56169825,133.52,133.51,1e-08]
[1765159020346,11.56169825,133.52,133.49,1e-08]
[1765159020347,3.42218358,133.5,133.49,1e-08]
[1765159020550,11.70218358,133.5,133.49,1e-08]
[1765159020735,12.35218358,133.5,133.49,1e-08]
[1765159021444,12.35218358,133.5,133.47,1e-08]
[1765159021648,12.35218358,133.5,133.41,0.87]
[1765159021649,3.42218358,133.48,133.41,0.2]
[1765159021952,0.99999999,133.37,133.36,1e-08]
[1765159022152,42.54771248,133.39,133.34,0.2]
[1765159022373,8.80994492,133.38,133.34,0.2]
[1765159022662,3.42218358,133.35,133.34,1e-08]
[1765159022965,11.72218358,133.35,133.34,1e-08]
[1765159023165,15.70436716,133.35,133.28,0.1]
[1765159023478,3.42218358,133.3,133.28,0.1]
[1765159023762,11.72218358,133.31,133.28,0.1]
[1765159024058,7.50075007,133.32,133.28,0.77]
[1765159025235,16.308864,133.29,133.21,24.21170054]
[1765159025443,8.3,133.28,133.22,0.67]
[1765159025756,52.14679322,133.32,133.26,9.12530397]
[1765159025947,52.14679322,133.32,133.28,9.12530397]
[1765159025948,7.50075007,133.32,133.28,9.12530397]
[1765159026139,18.74864539,133.35,133.31,9.12530397]
[1765159026342,27.87394936,133.35,133.26,8.80994492]
[1765159026651,16.768864,133.34,133.26,9.47994492]
[1765159026960,17.42530397,133.33,133.27,0.67]
[1765159027258,9.12530397,133.32,133.27,0.67]
[1765159027559,8.32,133.31,133.27,0.67]
[1765159028131,7.50187546,133.3,133.27,0.67]
[1765159028335,7.50187546,133.3,133.25,16.308864]
[1765159028558,9.12530397,133.27,133.23,0.67]
[1765159028758,8.32,133.27,133.23,0.67]
[1765159030259,24.94902051,133.27,133.23,0.67]
[1765159030650,8.32,133.26,133.23,0.67]
[1765159031248,8.32,133.31,133.26,16.308864]
[1765159031559,8.32,133.31,133.27,0.67]
[1765159031780,7.50075007,133.32,133.27,9.79530397]